bitfinex-derivatives/quotes_BTCF0:USTF0_20241213
["timestamp","ask_amount","ask_price","bid_price","bid_amount"]
[1734108681184,0.37628325,101270.0,101260.0,0.049375]
[1734108681484,0.19876334,101270.0,101260.0,0.50408666]
[1734108681694,0.19728136,101270.0,101260.0,0.50408666]
[1734108681875,0.14790736,101270.0,101260.0,0.50408666]
[1734108682190,0.19727736,101270.0,101260.0,0.50408666]
[1734108682387,0.21443235,101270.0,101260.0,0.50408666]
[1734108683086,0.06652499,101270.0,101260.0,0.50408666]
[1734108683280,0.01665499,101270.0,101250.0,0.71544966]
[1734108683477,0.049375,101260.0,101250.0,0.71408966]
[1734108683787,0.049375,101260.0,101250.0,0.71308966]
[1734108684787,0.054375,101260.0,101250.0,0.71408966]
[1734108684990,0.054375,101260.0,101250.0,0.411178]
[1734108685182,0.20228236,101260.0,101250.0,0.411178]
[1734108685683,0.20628236,101260.0,101250.0,0.411178]
[1734108686080,0.15690736,101260.0,101250.0,0.411178]
[1734108686278,0.20628236,101260.0,101250.0,0.050378]
[1734108686688,0.83851393,101260.0,101250.0,0.001]
[1734108686889,0.049388,101240.0,101220.0,0.61168518]
[1734108687090,0.6210363,101250.0,101230.0,0.09391166]
[1734108687282,0.14754505,101250.0,101240.0,0.50409666]
[1734108687479,0.44227775,101260.0,101240.0,0.60449666]
[1734108687480,0.33361337,101260.0,101240.0,0.60449666]
[1734108687782,0.009,101260.0,101250.0,0.50409166]
[1734108687982,0.005,101260.0,101250.0,0.60269166]
[1734108688292,0.35960004,101270.0,101260.0,0.049375]
[1734108688588,0.35960004,101270.0,101260.0,0.410175]
[1734108689383,0.35910004,101270.0,101260.0,0.410175]
[1734108690093,0.26000004,101270.0,101260.0,0.410175]
[1734108690586,0.16020004,101270.0,101260.0,0.50408666]
[1734108690786,0.16420004,101270.0,101260.0,0.50408666]
[1734108690982,0.17320004,101270.0,101260.0,0.60558666]
[1734108691381,0.17320004,101270.0,101260.0,0.511675]
[1734108691583,0.58337004,101270.0,101260.0,0.150875]
[1734108691789,0.85435002,101270.0,101260.0,0.001]
[1734108691980,1.10570497,101270.0,101260.0,0.001]
[1734108692180,1.13547008,101270.0,101240.0,0.3608]
[1734108692381,0.37419122,101250.0,101240.0,0.3608]
[1734108692595,0.32481122,101250.0,101240.0,0.50409666]
[1734108693289,0.14764146,101250.0,101240.0,0.50409666]
[1734108693790,0.14764146,101250.0,101240.0,0.60839666]
[1734108693987,0.32481122,101260.0,101250.0,0.04938]
[1734108694185,0.32481122,101260.0,101250.0,0.50409166]
[1734108694884,0.32481122,101260.0,101250.0,0.41018]
[1734108695187,0.33381122,101260.0,101250.0,0.41118]
[1734108695391,0.69384476,101260.0,101250.0,0.001]
[1734108695893,0.4713,101260.0,101250.0,0.05038]
[1734108696485,0.28781836,101260.0,101250.0,0.05038]
[1734108696679,0.4355758,101260.0,101250.0,0.14429166]
[1734108696892,0.4355758,101260.0,101250.0,0.41118]
[1734108697090,0.4355758,101260.0,101250.0,0.50509166]
[1734108697385,0.4355758,101260.0,101250.0,0.41118]
[1734108697794,0.4355758,101260.0,101250.0,0.05038]
[1734108698281,0.33719336,101260.0,101250.0,0.001]
[1734108698487,0.43110502,101260.0,101250.0,0.001]
[1734108699086,0.79190502,101260.0,101250.0,0.001]
[1734108699285,0.61458666,101260.0,101250.0,0.001]
[1734108699492,1.05780116,101260.0,101250.0,0.001]
[1734108701296,1.72288116,101260.0,101250.0,0.001]
[1734108701493,0.04938,101250.0,101220.0,0.41167252]
[1734108701711,0.65196098,101230.0,101220.0,0.00148152]
[1734108701994,0.68153284,101230.0,101220.0,0.00148152]
[1734108702190,0.78754241,101230.0,101220.0,0.00148152]
[1734108702497,0.42674241,101230.0,101220.0,0.05137552]
[1734108703195,0.42674241,101230.0,101220.0,0.00198152]
[1734108703501,0.78754241,101230.0,101220.0,0.00198152]
[1734108703685,0.78754241,101230.0,101220.0,0.00298152]
[1734108703885,0.78754241,101230.0,101220.0,0.0015]
[1734108704385,1.08754241,101230.0,101200.0,0.410203]
[1734108704591,0.14331066,101210.0,101200.0,0.410203]
[1734108704801,0.19705056,101210.0,101200.0,0.410203]
[1734108705108,0.31518091,101210.0,101200.0,0.3608]
[1734108705395,0.31518091,101210.0,101190.0,1.61169009]
[1734108705396,0.76981044,101210.0,101190.0,1.61169009]
[1734108705601,0.76981044,101210.0,101190.0,1.66109609]
[1734108705806,0.11804822,101200.0,101190.0,1.61168809]
[1734108706395,0.76981044,101210.0,101190.0,1.61168809]
[1734108706590,0.76981044,101210.0,101200.0,0.001]
[1734108706998,0.65176222,101210.0,101200.0,0.001]
[1734108707403,0.62306975,101210.0,101200.0,0.009]
[1734108708107,0.76972131,101210.0,101190.0,0.36728209]
[1734108708400,0.62207175,101210.0,101190.0,0.41668909]
[1734108708601,0.67147475,101210.0,101190.0,1.61668909]
[1734108708997,0.14331566,101200.0,101190.0,1.56728209]
[1734108709193,0.14331566,101200.0,101190.0,1.56228209]
[1734108709403,0.14331566,101200.0,101190.0,0.36278209]
[1734108709599,0.14331566,101200.0,101190.0,0.00198209]
[1734108709911,0.62207475,101200.0,101190.0,0.00198209]
[1734108710094,0.62207475,101200.0,101190.0,0.00498209]
[1734108710293,0.62207475,101200.0,101190.0,0.00898209]
[1734108710499,0.62207475,101200.0,101190.0,0.0075]
[1734108710696,0.26127475,101200.0,101190.0,0.417709]
[1734108710901,0.79347909,101220.0,101200.0,0.049404]
[1734108711092,0.11857563,101220.0,101210.0,0.50411066]
[1734108711801,0.11857563,101220.0,101210.0,0.410199]
[1734108712004,0.11857563,101220.0,101210.0,0.049399]
[1734108712201,0.11857563,101220.0,101200.0,0.3608]
[1734108712202,0.16796963,101220.0,101200.0,0.3608]
[1734108712405,0.28592872,101220.0,101200.0,0.410202]
[1734108712599,0.28692872,101220.0,101200.0,0.410202]
[1734108712914,0.12357563,101220.0,101210.0,0.410199]
[1734108713102,0.01747563,101220.0,101210.0,0.50411066]
[1734108713409,0.01747563,101220.0,101210.0,0.60311066]
[1734108713796,0.01347563,101220.0,101210.0,1.80311066]
[1734108713999,0.03749032,101220.0,101210.0,1.80311066]
[1734108714199,0.02501469,101220.0,101210.0,0.509199]
[1734108714499,0.02501469,101220.0,101210.0,0.410199]
[1734108715705,0.02501469,101220.0,101210.0,0.049399]
[1734108716907,0.07440869,101220.0,101210.0,0.049399]
[1734108717111,0.02501469,101220.0,101210.0,0.049399]
[1734108717503,0.02501469,101220.0,101210.0,0.410199]
[1734108718703,0.07440869,101220.0,101210.0,0.410199]
[1734108719103,0.07440869,101220.0,101210.0,0.049399]
[1734108719407,0.19236778,101220.0,101210.0,0.049399]
[1734108720007,0.19236778,101220.0,101200.0,0.410201]
[1734108720202,0.19236778,101220.0,101210.0,0.049399]
[1734108720507,0.14297378,101220.0,101210.0,0.14331066]
[1734108720708,0.02501469,101220.0,101210.0,0.50411066]
[1734108720910,0.02501469,101220.0,101210.0,0.410199]
[1734108721303,0.02501469,101220.0,101210.0,0.049399]
[1734108721500,0.14297378,101220.0,101210.0,0.049399]
[1734108721705,0.02401469,101220.0,101210.0,0.50411066]
[1734108721905,0.02501469,101220.0,101210.0,0.71731066]
[1734108722514,0.004,101220.0,101210.0,0.71731066]
[1734108722811,0.1304243,101230.0,101220.0,0.049399]
[1734108724010,0.1344243,101230.0,101220.0,0.049399]
[1734108724223,0.28207586,101230.0,101220.0,0.049399]
[1734108724624,0.28207586,101230.0,101210.0,0.71770966]
[1734108724928,0.28207586,101230.0,101220.0,0.049399]
[1734108725428,0.28307586,101230.0,101220.0,0.049399]
[1734108726233,0.57531177,101230.0,101220.0,0.049399]
[1734108726425,0.39185252,101230.0,101220.0,0.049399]
[1734108726730,0.16511677,101230.0,101220.0,0.049399]
[1734108727031,0.18515604,101230.0,101220.0,0.049399]
[1734108727229,0.36249679,101230.0,101220.0,0.049399]
[1734108729132,0.35849679,101230.0,101220.0,0.049399]
[1734108729330,0.36249679,101230.0,101220.0,0.049399]
[1734108730230,0.21484523,101230.0,101220.0,0.049399]
[1734108730635,0.36261904,101230.0,101220.0,0.049399]
[1734108731326,0.21484523,101230.0,101220.0,0.049399]
[1734108731926,0.21084523,101230.0,101220.0,0.50411066]
[1734108732236,0.15574123,101230.0,101220.0,0.60341066]
[1734108732732,0.12323675,101230.0,101220.0,0.60341066]
[1734108732932,0.12323675,101230.0,101220.0,0.69732232]
[1734108732933,0.12223675,101230.0,101220.0,0.69732232]
[1734108733132,0.11923675,101230.0,101220.0,0.60341066]
[1734108733335,0.005,101230.0,101220.0,0.69732232]
[1734108734132,0.11867459,101250.0,101240.0,0.04939]
[1734108734337,0.61717599,101280.0,101240.0,2.06490166]
[1734108734338,0.14781918,101270.0,101240.0,2.06490166]
[1734108734631,0.14781918,101270.0,101260.0,0.50409166]
[1734108735427,0.25081918,101280.0,101270.0,0.049375]
[1734108736226,0.27066495,101280.0,101270.0,0.049375]
[1734108736834,0.27866495,101280.0,101270.0,0.050375]
[1734108737530,0.4560057,101280.0,101270.0,0.050375]
[1734108737732,0.46843046,101280.0,101270.0,0.050375]
[1734108738128,0.82923046,101280.0,101270.0,0.001]
[1734108738331,0.0005,101260.0,101250.0,0.410182]
[1734108739344,0.3608,101270.0,101260.0,0.04938]
[1734108740335,0.50861918,101270.0,101260.0,0.04938]
[1734108741636,0.14781918,101270.0,101260.0,0.04938]
[1734108741834,0.14781918,101270.0,101250.0,0.50509666]
[1734108741835,0.14781918,101270.0,101250.0,0.50509466]
[1734108742240,0.51761918,101270.0,101260.0,0.001]
[1734108742442,0.52161918,101270.0,101260.0,0.001]
[1734108742745,0.57099418,101270.0,101260.0,0.001]
[1734108743142,0.56699418,101270.0,101260.0,0.001]
[1734108743349,0.57099418,101270.0,101260.0,0.001]
[1734108743934,0.66090584,101270.0,101260.0,0.001]
[1734108744135,0.049385,101250.0,101240.0,0.3608]
[1734108744341,0.60205121,101250.0,101230.0,0.2103816]
[1734108744536,0.04939,101240.0,101230.0,0.2597756]
[1734108744750,0.41019,101240.0,101230.0,0.0014816]
[1734108744946,0.50410166,101240.0,101230.0,0.0014816]
[1734108745243,0.55752955,101240.0,101230.0,0.0014816]
[1734108745645,0.19672955,101240.0,101230.0,0.0014816]
[1734108745844,0.04939,101240.0,101230.0,0.0014816]
[1734108746247,0.05339,101240.0,101230.0,0.0014816]
[1734108746447,0.004,101240.0,101230.0,0.0508756]
[1734108746643,0.05439,101240.0,101230.0,0.0508756]
[1734108747137,0.005,101240.0,101230.0,0.14478726]
[1734108747345,0.3658,101240.0,101230.0,0.14478726]
[1734108747748,0.51313955,101240.0,101230.0,0.14478726]
[1734108748253,0.15233955,101240.0,101230.0,0.14478726]
[1734108748552,0.005,101240.0,101230.0,0.0508756]
[1734108749051,0.005,101240.0,101230.0,0.14478726]
[1734108749238,0.005,101240.0,101230.0,0.0508756]
[1734108749649,0.005,101240.0,101230.0,0.14478726]
[1734108750750,0.005,101240.0,101230.0,0.50558726]
[1734108750956,0.005,101240.0,101230.0,0.60268726]
[1734108751343,0.005,101240.0,101230.0,1.80268726]
[1734108752344,0.005,101240.0,101230.0,1.3479756]
[1734108752544,0.005,101240.0,101230.0,1.2508756]
[1734108753052,0.005,101240.0,101230.0,1.70558726]
[1734108753450,0.005,101240.0,101230.0,0.50558726]
[1734108753857,0.005,101240.0,101230.0,1.70558726]
[1734108754752,0.005,101240.0,101230.0,1.34478726]
[1734108755152,0.005,101240.0,101230.0,1.70558726]
[1734108755356,0.005,101240.0,101230.0,1.34478726]
[1734108755553,0.005,101240.0,101230.0,1.70558726]
[1734108756253,0.005,101240.0,101230.0,1.71766592]
[1734108756453,0.005,101240.0,101230.0,1.35686592]
[1734108757656,0.005,101240.0,101230.0,1.71766592]
[1734108758154,0.005,101240.0,101230.0,0.51766592]
[1734108758549,0.14733955,101260.0,101230.0,0.81766592]
[1734108758749,0.4292803,101270.0,101260.0,0.04938]
[1734108759062,0.4292803,101270.0,101260.0,0.50409166]
[1734108759251,0.25193955,101270.0,101260.0,0.41018]
[1734108759557,0.25193955,101270.0,101260.0,0.50409166]
[1734108759745,0.25193955,101270.0,101260.0,0.50509166]
[1734108759746,0.26093955,101270.0,101260.0,0.50509166]
[1734108759948,0.1682579,101270.0,101260.0,0.50509166]
[1734108761364,0.1722579,101270.0,101260.0,0.50509166]
[1734108761557,0.1702579,101270.0,101260.0,0.50509166]
[1734108761956,0.1662579,101270.0,101260.0,0.50509166]
[1734108762156,0.15633955,101270.0,101260.0,1.70509166]
[1734108762357,0.009,101270.0,101260.0,1.70509166]
[1734108763459,0.0005,101280.0,101270.0,0.049375]
[1734108763662,0.0005,101280.0,101270.0,0.59799832]
[1734108763862,0.0005,101280.0,101270.0,0.80408666]
[1734108764270,0.30148161,101290.0,101270.0,0.80408666]
[1734108764271,0.3,101290.0,101280.0,0.04937]
[1734108764557,0.1,101300.0,101280.0,0.59799332]
[1734108764747,0.1,101300.0,101290.0,0.50407666]
[1734108764951,0.18843729,101300.0,101290.0,0.50407666]
[1734108765163,0.1,101300.0,101290.0,0.50407666]
[1734108766055,0.109,101300.0,101290.0,0.50507666]
[1734108767652,0.109,101300.0,101290.0,1.70507666]
[1734108767853,0.112,101300.0,101290.0,1.70507666]
[1734108768263,0.112,101300.0,101290.0,1.71703191]
[1734108768566,0.102,101300.0,101290.0,1.71703191]
[1734108768859,0.102,101300.0,101290.0,0.51703191]
[1734108769050,0.15136,101300.0,101290.0,0.42312025]
[1734108769256,0.15136,101300.0,101290.0,0.51703191]
[1734108769468,0.15186,101300.0,101290.0,0.51703191]
[1734108770263,0.15186,101300.0,101290.0,0.050365]
[1734108770264,0.15257166,101300.0,101290.0,0.050365]
[1734108770460,0.15257166,101300.0,101290.0,0.001]
[1734108770461,0.61997166,101300.0,101290.0,0.001]
[1734108770659,0.81430895,101300.0,101290.0,0.001]
[1734108770969,0.35959729,101300.0,101290.0,0.050365]
[1734108771162,0.63196,101300.0,101290.0,0.001]
[1734108771364,0.72039729,101300.0,101290.0,0.001]
[1734108772565,0.73794705,101300.0,101290.0,0.001]
[1734108772865,0.82609268,101300.0,101290.0,0.001]
[1734108773052,0.79137494,101300.0,101290.0,0.001]
[1734108774583,0.049365,101290.0,101280.0,0.049367]
[1734108774866,0.69582525,101290.0,101270.0,0.410173]
[1734108775171,0.59223425,101280.0,101260.0,1.25086]
[1734108775365,0.3608,101270.0,101260.0,1.25086]
[1734108776165,0.44894859,101280.0,101270.0,0.049375]
[1734108776563,0.44894859,101280.0,101270.0,0.14328666]
[1734108777266,0.66310555,101290.0,101270.0,0.14328666]
[1734108777267,0.55454859,101290.0,101280.0,0.04937]
[1734108777462,0.69782525,101290.0,101280.0,0.04937]
[1734108777663,0.69782525,101290.0,101270.0,0.049373]
[1734108777861,0.69582525,101290.0,101270.0,0.049373]
[1734108778060,0.13751859,101280.0,101270.0,0.049373]
[1734108778260,0.23143025,101280.0,101270.0,0.049373]
[1734108778459,0.13751859,101280.0,101270.0,0.049373]
[1734108778870,0.44894859,101280.0,101270.0,0.049373]
[1734108779164,0.08814859,101280.0,101270.0,0.14328466]
[1734108779368,0.08814859,101280.0,101270.0,0.50408466]
[1734108779669,0.55454859,101290.0,101280.0,0.04937]
[1734108779870,0.55454859,101290.0,101280.0,0.14328166]
[1734108780485,0.55254859,101290.0,101280.0,0.14328166]
[1734108780974,0.55254859,101290.0,101280.0,0.04937]
[1734108781172,0.19374859,101290.0,101280.0,0.14328166]
[1734108781560,0.19374859,101290.0,101280.0,1.34328166]
[1734108781761,0.60591359,101290.0,101280.0,1.24937]
[1734108781965,0.60591359,101290.0,101280.0,0.04937]
[1734108782578,0.69999764,101290.0,101280.0,0.04937]
[1734108782759,0.75901621,101290.0,101280.0,0.04937]
[1734108783172,0.66510455,101290.0,101280.0,0.04937]
[1734108788269,0.8424453,101290.0,101280.0,0.04937]
[1734108788977,0.04937,101280.0,101270.0,0.410174]
[1734108789278,0.04937,101280.0,101260.0,0.050779]
[1734108789279,0.049375,101270.0,101260.0,0.050779]
[1734108789470,0.855969,101270.0,101260.0,0.049879]
[1734108789671,0.76205734,101270.0,101260.0,0.049879]
[1734108790277,0.855969,101270.0,101260.0,0.049879]
[1734108790478,0.76205734,101270.0,101260.0,0.049379]
[1734108791074,0.76205734,101270.0,101260.0,0.051379]
[1734108791379,0.52922309,101270.0,101260.0,0.05338]
[1734108791571,0.14758234,101270.0,101260.0,0.50859166]
[1734108791772,0.08854603,101270.0,101260.0,0.61179166]
[1734108791970,0.08854603,101270.0,101260.0,0.70929166]
[1734108792181,0.08854603,101280.0,101270.0,0.049375]
[1734108792369,0.08854603,101280.0,101270.0,0.410175]
[1734108792786,0.08854603,101280.0,101270.0,0.50408666]
[1734108793674,0.08854603,101280.0,101270.0,0.410175]
[1734108793877,0.93898809,101290.0,101280.0,0.04937]
[1734108794673,0.88962309,101290.0,101280.0,0.04937]
[1734108795072,0.52882309,101290.0,101280.0,0.04937]
[1734108795482,0.53082309,101290.0,101280.0,0.04937]
[1734108795673,0.89162309,101290.0,101280.0,0.04937]
[1734108795872,0.43052309,101290.0,101280.0,0.14328166]
[1734108796081,0.14958234,101290.0,101280.0,0.04937]
[1734108796278,0.32692309,101290.0,101280.0,0.04937]
[1734108796477,0.21288981,101290.0,101280.0,0.04937]
[1734108796683,0.75103056,101290.0,101280.0,0.04937]
[1734108796878,0.75110124,101290.0,101280.0,0.04937]
[1734108797185,0.04937,101280.0,101270.0,0.410174]
[1734108797384,0.37433906,101280.0,101270.0,0.410174]
[1734108797691,0.32496906,101280.0,101270.0,0.049374]
[1734108797888,0.42696906,101280.0,101270.0,0.049374]
[1734108798190,0.17725585,101280.0,101270.0,0.049374]
[1734108798482,0.32503507,101280.0,101270.0,0.50408566]
[1734108798677,0.26800097,101280.0,101270.0,0.50408566]
[1734108798873,0.26800097,101280.0,101270.0,0.60428566]
[1734108799077,0.12022175,101280.0,101270.0,0.60428566]
[1734108799286,0.26800097,101280.0,101270.0,0.60428566]
[1734108799886,0.35670398,101280.0,101270.0,0.60428566]
[1734108800187,0.26800097,101280.0,101270.0,0.60428566]
[1734108800383,0.26800097,101280.0,101270.0,0.77755789]
[1734108800591,0.12022175,101280.0,101270.0,0.77755789]
[1734108801687,0.20895148,101280.0,101270.0,0.90428566]
[1734108802075,0.20895148,101280.0,101270.0,1.07755789]
[1734108802283,0.09072973,101280.0,101270.0,1.07755789]
[1734108803387,0.09072973,101280.0,101270.0,2.27755789]
[1734108804093,0.09072973,101280.0,101270.0,2.28952099]
[1734108804385,0.09072973,101280.0,101270.0,1.81624876]
[1734108804578,0.20895148,101280.0,101270.0,1.81624876]
[1734108806183,0.20895148,101280.0,101270.0,1.98952099]
[1734108806587,0.09072973,101280.0,101270.0,1.98952099]
[1734108807289,0.09072973,101280.0,101270.0,1.81624876]
[1734108807591,0.09072973,101280.0,101270.0,1.98952099]
[1734108807592,0.20888801,101280.0,101270.0,1.98952099]
[1734108807796,0.12022175,101280.0,101270.0,1.98952099]
[1734108808787,0.25825911,101280.0,101270.0,0.410174]
[1734108809092,0.19914922,101280.0,101270.0,0.049374]
[1734108809289,0.85263828,101280.0,101270.0,0.049374]
[1734108809489,0.80462585,101280.0,101270.0,0.049374]
[1734108810393,0.80462585,101280.0,101270.0,0.14328566]
[1734108811590,0.28715585,101280.0,101270.0,0.50408566]
[1734108811789,0.43495848,101280.0,101270.0,0.50408566]
[1734108812090,0.43495848,101280.0,101270.0,0.14328566]
[1734108812292,0.25770263,101280.0,101270.0,0.14328566]
[1734108814188,0.25770263,101280.0,101270.0,0.50408566]
[1734108814800,0.14980263,101280.0,101270.0,1.70408566]
[1734108816097,0.12022587,101280.0,101270.0,1.70408566]
[1734108817102,0.002,101280.0,101270.0,1.71581717]
[1734108818204,0.12021855,101280.0,101270.0,1.71581717]
[1734108820202,0.26799174,101280.0,101270.0,1.71581717]
[1734108821609,0.19914319,101280.0,101270.0,0.410174]
[1734108821794,0.37647102,101280.0,101270.0,0.410174]
[1734108822306,0.22869783,101280.0,101270.0,0.410174]
[1734108822495,0.27833361,101290.0,101280.0,0.04937]
[1734108822701,0.20696822,101290.0,101280.0,0.59799332]
[1734108822908,0.20696822,101290.0,101280.0,1.80438166]
[1734108823099,0.20696822,101290.0,101280.0,1.97765525]
[1734108823307,0.08869837,101290.0,101280.0,1.80438166]
[1734108823602,0.20696822,101290.0,101280.0,1.80438166]
[1734108823808,0.12556985,101300.0,101280.0,2.60259836]
[1734108823998,0.12556985,101300.0,101290.0,0.50407666]
[1734108824193,0.0073,101300.0,101290.0,0.67735025]
[1734108824598,0.0068,101300.0,101290.0,0.67735025]
[1734108825398,0.0068,101300.0,101290.0,0.50507666]
[1734108825603,0.0073,101300.0,101290.0,0.50507666]
[1734108825808,0.0103,101300.0,101290.0,0.50507666]
[1734108826408,0.12856985,101300.0,101290.0,0.50507666]
[1734108826611,0.12806985,101300.0,101290.0,0.50507666]
[1734108826798,0.12806985,101300.0,101290.0,0.51648924]
[1734108826995,0.12806985,101300.0,101290.0,0.42257758]
[1734108827313,0.12806985,101300.0,101290.0,0.51648924]
[1734108827605,0.12856985,101300.0,101290.0,0.51648924]
[1734108828510,0.12806985,101300.0,101290.0,0.51648924]
[1734108829403,0.42628316,101300.0,101290.0,0.050365]
[1734108829605,0.42678316,101300.0,101290.0,0.050365]
[1734108829806,0.37742316,101300.0,101290.0,0.411165]
[1734108830310,0.37742316,101300.0,101290.0,0.50507666]
[1734108831402,0.38891762,101300.0,101290.0,0.411165]
[1734108831610,0.68080777,101300.0,101290.0,0.050365]
[1734108833111,0.63144777,101300.0,101290.0,0.050365]
[1734108833502,0.27064777,101300.0,101290.0,0.50507666]
[1734108833698,0.27064777,101300.0,101290.0,0.14427666]
[1734108834118,0.38874142,101300.0,101290.0,0.14427666]
[1734108834612,0.38874142,101300.0,101290.0,0.050365]
[1734108834613,0.38824142,101300.0,101290.0,0.050365]
[1734108835418,0.12789365,101300.0,101290.0,0.50507666]
[1734108835708,0.12789365,101300.0,101290.0,1.81127666]
[1734108835909,0.0098,101300.0,101290.0,1.81127666]
[1734108836709,0.0098,101300.0,101290.0,1.356565]
[1734108836908,0.51387166,101300.0,101290.0,0.001]
[1734108837211,0.049365,101290.0,101280.0,0.049369]
[1734108837421,0.65647917,101290.0,101280.0,0.049369]
[1734108837603,0.29567917,101290.0,101280.0,0.049369]
[1734108837804,0.24631417,101290.0,101280.0,0.049369]
[1734108838116,0.53184039,101290.0,101280.0,0.049369]
[1734108838314,0.65647917,101290.0,101280.0,0.049369]
[1734108839112,0.75239083,101290.0,101270.0,0.410173]
[1734108839422,0.22269383,101280.0,101270.0,0.410173]
[1734108839715,0.370308,101280.0,101270.0,0.410173]
[1734108840522,0.519578,101280.0,101270.0,0.410173]
[1734108840721,0.76228417,101280.0,101260.0,1.26230932]
[1734108840928,0.11811437,101270.0,101260.0,1.26230932]
[1734108841228,0.67590354,101270.0,101260.0,0.05085793]
[1734108841419,0.55778917,101270.0,101260.0,0.00148093]
[1734108841617,0.65170083,101270.0,101260.0,0.0005]
[1734108841821,0.50408666,101270.0,101260.0,0.0005]
[1734108842523,0.63178759,101270.0,101250.0,0.049383]
[1734108842835,0.67579389,101260.0,101250.0,0.049383]
[1734108843023,0.62641389,101260.0,101250.0,0.14329466]
[1734108843225,0.47885062,101260.0,101250.0,0.049383]
[1734108843420,0.52823062,101260.0,101250.0,0.049383]
[1734108843725,0.67579389,101260.0,101250.0,0.049383]
[1734108844030,0.78249389,101260.0,101250.0,0.049383]
[1734108844227,0.72884228,101260.0,101250.0,0.055383]
[1734108844526,0.87640555,101260.0,101250.0,0.006]
[1734108844735,0.87640555,101260.0,101240.0,1.249389]
[1734108844736,0.049385,101250.0,101240.0,1.249389]
[1734108844933,0.75455993,101250.0,101240.0,1.249389]
[1734108845330,0.872433,101250.0,101240.0,0.049389]
[1734108845631,0.87243212,101250.0,101240.0,0.049389]
[1734108846343,0.77852046,101250.0,101240.0,0.064389]
[1734108846633,0.87243212,101250.0,101240.0,0.064389]
[1734108847031,0.72486885,101250.0,101240.0,0.064389]
[1734108847838,0.82876885,101250.0,101240.0,0.064389]
[1734108848526,0.73485719,101250.0,101240.0,0.064389]
[1734108848725,0.69711527,101250.0,101240.0,0.064389]
[1734108848927,0.74650027,101250.0,101240.0,0.064389]
[1734108849129,0.84041193,101250.0,101240.0,0.015]
[1734108850244,0.72253974,101250.0,101240.0,0.015]
[1734108850536,0.72253974,101250.0,101220.0,0.049395]
[1734108850537,1.1164514,101250.0,101220.0,0.049395]
[1734108850739,0.50410166,101240.0,101220.0,0.049395]
[1734108851039,0.50410166,101240.0,101220.0,0.049393]
[1734108851226,0.50410166,101240.0,101220.0,1.249393]
[1734108851629,0.45471166,101230.0,101220.0,0.006]
[1734108851942,0.50410666,101230.0,101220.0,0.006]
[1734108852243,0.0494,101210.0,101200.0,0.00148199]
[1734108852441,0.50411166,101210.0,101200.0,0.00148199]
[1734108852632,0.50411166,101210.0,101190.0,0.049407]
[1734108852941,0.4102,101210.0,101190.0,0.098814]
[1734108853245,0.4102,101210.0,101190.0,0.049407]
[1734108853428,0.0504,101210.0,101200.0,0.009]
[1734108853637,0.4112,101210.0,101200.0,0.009]
[1734108853836,0.50411166,101210.0,101190.0,0.459613]
[1734108854141,0.50511166,101210.0,101190.0,0.058406]
[1734108854341,0.049405,101200.0,101190.0,0.058406]
[1734108854543,0.50411666,101200.0,101190.0,0.058406]
[1734108854735,0.50411666,101200.0,101190.0,0.009]
[1734108855343,0.60981666,101200.0,101190.0,0.009]
[1734108855538,0.04941,101190.0,101180.0,0.410213]
[1734108855742,0.24352166,101190.0,101180.0,0.3608]
[1734108855934,0.60432166,101190.0,101170.0,0.410219]
[1734108856140,0.60432166,101190.0,101170.0,0.410217]
[1734108856642,0.3608,101180.0,101120.0,0.12258504]
[1734108856849,0.3608,101180.0,101050.0,1.70779771]
[1734108856850,0.3608,101110.0,101050.0,1.70779771]
[1734108857049,0.3608,101040.0,100990.0,0.2073]
[1734108857236,0.14339466,101040.0,101030.0,0.28799673]
[1734108857437,0.771083,101040.0,101030.0,0.14266017]
[1734108857641,0.27524318,101030.0,101000.0,0.1]
[1734108857843,0.62261634,101010.0,101000.0,0.11547444]
[1734108858046,0.73337117,101010.0,101000.0,0.23415447]
[1734108858249,0.3608,101010.0,101000.0,0.49043166]
[1734108858441,1.64825345,101010.0,101000.0,0.28247726]
[1734108858637,0.3608,101010.0,101000.0,0.28247726]
[1734108858838,0.3608,101010.0,101000.0,0.1885656]
[1734108859038,0.3608,101010.0,101000.0,0.28247726]
[1734108859336,1.00469045,101010.0,100990.0,0.049505]
[1734108859640,1.00469045,101010.0,100990.0,0.19064648]
[1734108859641,2.6954449,101000.0,100990.0,0.19064648]
[1734108859840,1.01425414,101000.0,100990.0,0.19064648]
[1734108860249,1.00469045,101000.0,100980.0,0.19069148]
[1734108860437,0.3608,100990.0,100980.0,0.19069148]
[1734108860638,0.3608,100990.0,100980.0,0.19119148]
[1734108860835,0.3608,100990.0,100980.0,0.05001]
[1734108861950,1.00469045,101000.0,100980.0,0.05001]
[1734108862258,0.3608,100990.0,100980.0,0.050507]
[1734108862438,1.00469045,101000.0,100980.0,0.14218148]
[1734108862645,1.00469045,101000.0,100990.0,0.19068848]
[1734108862953,1.00469045,101000.0,100980.0,0.14268148]
[1734108863153,1.01369045,101000.0,100990.0,1.249507]
[1734108863857,1.01269045,101000.0,100990.0,1.250507]
[1734108864549,1.01269045,101000.0,100980.0,0.0005]
[1734108864742,0.3608,100990.0,100980.0,0.050011]
[1734108865139,0.3608,100990.0,100960.0,0.96804148]
[1734108865351,0.3608,100980.0,100970.0,0.049517]
[1734108866547,1.00469045,101000.0,100980.0,0.050012]
[1734108866753,1.00469045,101000.0,100980.0,0.19119348]
[1734108866950,1.02403207,101000.0,100980.0,0.14168148]
[1734108867142,1.02403207,101000.0,100990.0,0.049507]
[1734108867143,1.00469045,101000.0,100990.0,0.049507]
[1734108867553,0.3608,101010.0,100990.0,0.19068848]
[1734108867742,0.008,101000.0,100990.0,0.19068848]
[1734108868861,0.008,101000.0,100990.0,0.19168848]
[1734108869050,0.008,101000.0,100990.0,0.050507]
[1734108869257,0.3688,101000.0,100990.0,0.051507]
[1734108869555,0.84517779,101000.0,100990.0,0.051467]
[1734108869761,0.78115904,101000.0,100990.0,0.001]
[1734108870164,0.63997756,101000.0,100990.0,0.001]
[1734108870457,0.3648,101000.0,100960.0,0.96804148]
[1734108870665,0.11482037,100970.0,100960.0,0.876342]
[1734108870962,0.11482037,100970.0,100960.0,1.176342]
[1734108871263,0.14352547,100990.0,100960.0,1.176342]
[1734108871461,0.17623056,101000.0,100990.0,0.049507]
[1734108871760,0.005,101000.0,100990.0,0.049507]
[1734108872154,0.008,101000.0,100990.0,0.049507]
[1734108872355,0.3678,101000.0,100990.0,0.049507]